bitfinex-derivatives/quotes_BTCF0:USTF0_20240817
["timestamp","ask_amount","ask_price","bid_price","bid_amount"]
[1723921400954,0.05021555,59457.0,59456.0,0.063063]
[1723921401151,0.05021555,59457.0,59456.0,0.156163]
[1723921401453,0.05973355,59460.0,59456.0,0.0931]
[1723921401767,0.05973355,59459.0,59458.0,0.063061]
[1723921402051,0.03247523,59459.0,59458.0,0.063061]
[1723921403257,0.03347523,59459.0,59458.0,0.157161]
[1723921403453,0.06073355,59459.0,59458.0,0.158161]
[1723921404253,0.06073355,59459.0,59458.0,0.221222]
[1723921404555,0.06073355,59459.0,59458.0,0.29470364]
[1723921404556,0.02825832,59459.0,59458.0,0.29470364]
[1723921405346,0.10045123,59462.0,59458.0,0.29470364]
[1723921405547,0.11770696,59484.0,59471.0,0.0931]
[1723921405853,0.10045316,59489.0,59488.0,0.063029]
[1723921406055,0.10045316,59492.0,59488.0,0.4539]
[1723921406248,0.10047053,59492.0,59491.0,0.0931]
[1723921406448,0.10047053,59496.0,59491.0,0.0931]
[1723921406650,0.10047053,59496.0,59495.0,0.0931]
[1723921406950,0.10047053,59496.0,59495.0,0.156121]
[1723921406951,0.08353499,59496.0,59495.0,0.156121]
[1723921407148,0.10047053,59500.0,59495.0,0.156121]
[1723921407454,0.0471,59501.0,59499.0,0.0931]
[1723921407850,0.0471,59501.0,59497.0,0.063019]
[1723921408049,0.08343067,59498.0,59494.0,0.37124634]
[1723921408359,0.001,59500.0,59495.0,0.001]
[1723921409258,0.001,59500.0,59495.0,0.002]
[1723921409852,0.0471,59501.0,59495.0,0.001]
[1723921410158,0.06302,59496.0,59495.0,0.001]
[1723921410360,0.3608,59496.0,59486.0,0.00025212]
[1723921410655,0.42383,59487.0,59486.0,0.00025212]
[1723921411154,0.92815,59487.0,59486.0,0.00025212]
[1723921411353,1.26512,59487.0,59470.0,0.2324]
[1723921411559,0.3608,59479.0,59472.0,0.063045]
[1723921411756,0.0479,59478.0,59472.0,0.063045]
[1723921413058,0.0479,59478.0,59472.0,0.068045]
[1723921413954,0.063041,59477.0,59472.0,0.069045]
[1723921414358,0.3608,59479.0,59476.0,0.063042]
[1723921416455,0.07362567,59478.0,59476.0,0.063042]
[1723921416655,0.03246657,59477.0,59476.0,0.05673781]
[1723921417852,0.03346657,59477.0,59476.0,0.05673781]
[1723921418356,0.09650757,59477.0,59472.0,0.063046]
[1723921418555,0.18243352,59476.0,59472.0,0.063046]
[1723921418750,0.03246657,59475.0,59472.0,0.063046]
[1723921418955,0.03246657,59474.0,59472.0,0.063046]
[1723921419157,0.03246657,59473.0,59472.0,0.063046]
[1723921419458,0.03246683,59474.0,59472.0,0.068046]
[1723921419654,0.14996695,59475.0,59472.0,0.068046]
[1723921419655,0.03246676,59473.0,59472.0,0.068046]
[1723921420059,0.14996695,59475.0,59474.0,0.063044]
[1723921420259,0.1824336,59475.0,59474.0,0.063044]
[1723921420453,0.18251377,59475.0,59474.0,0.063044]
[1723921420858,0.18251377,59475.0,59472.0,0.006]
[1723921421157,0.423845,59473.0,59472.0,0.006]
[1723921421460,0.49747085,59473.0,59472.0,0.005]
[1723921421660,1.17006366,59473.0,59472.0,0.005]
[1723921421863,1.22165392,59473.0,59469.0,0.00025212]
[1723921422049,0.16815281,59470.0,59462.0,0.063056]
[1723921422365,0.3608,59464.0,59457.0,0.24292722]
[1723921422662,0.1500606,59459.0,59458.0,0.06306]
[1723921422851,0.03246665,59459.0,59458.0,0.06306]
[1723921423459,0.063056,59463.0,59459.0,0.06306]
[1723921424449,0.063056,59463.0,59458.0,0.003]
[1723921424450,0.36105212,59464.0,59458.0,0.003]
[1723921424653,0.36105212,59464.0,59457.0,0.009]
[1723921424654,0.063058,59461.0,59457.0,0.009]
[1723921424958,0.063058,59461.0,59459.0,0.002]
[1723921425561,0.00025212,59464.0,59463.0,0.063055]
[1723921426256,0.00025212,59464.0,59463.0,0.295455]
[1723921426961,0.00225212,59464.0,59463.0,0.295455]
[1723921427258,0.00325212,59464.0,59463.0,0.295455]
[1723921428153,0.3608,59473.0,59472.0,0.063046]
[1723921429165,0.0002514,59478.0,59472.0,0.3608]
[1723921429365,0.0002514,59478.0,59477.0,0.063041]
[1723921430765,0.0002514,59478.0,59477.0,0.423841]
[1723921431964,0.0022514,59478.0,59477.0,0.423841]
[1723921432658,0.0022514,59478.0,59477.0,0.43406344]
[1723921432856,0.0022514,59478.0,59477.0,0.423841]
[1723921435158,0.16534014,59478.0,59477.0,0.3608]
[1723921435369,0.16334014,59478.0,59477.0,0.3618]
[1723921435563,0.0632904,59478.0,59477.0,0.3618]
[1723921436253,0.0632904,59478.0,59477.0,0.3608]
[1723921436458,0.0632904,59478.0,59477.0,0.3628]
[1723921437767,0.0002514,59478.0,59477.0,0.425841]
[1723921439162,0.0002514,59478.0,59477.0,0.424841]
[1723921439359,0.0002514,59478.0,59477.0,0.001]
[1723921442274,0.0632904,59478.0,59477.0,0.001]
[1723921447575,0.5676904,59478.0,59477.0,0.001]
[1723921447770,0.6307294,59478.0,59477.0,0.001]
[1723921448178,0.5676904,59478.0,59477.0,0.001]
[1723921448379,0.57782877,59478.0,59477.0,0.001]
[1723921453569,0.22262258,59478.0,59477.0,0.001]
[1723921453785,0.10589789,59478.0,59477.0,0.001]
[1723921455075,1.01029789,59478.0,59477.0,0.001]
[1723921455286,1.12702258,59478.0,59477.0,0.001]
[1723921455479,1.12772102,59478.0,59477.0,0.001]
[1723921456071,0.72772102,59478.0,59477.0,0.001]
[1723921456284,0.09575952,59478.0,59477.0,0.001]
[1723921456485,0.09575952,59478.0,59477.0,0.064041]
[1723921461577,0.0632904,59478.0,59477.0,0.064041]
[1723921462214,0.0632904,59478.0,59477.0,0.001]
[1723921462215,0.5676904,59478.0,59477.0,0.001]
[1723921462384,0.5676904,59478.0,59469.0,0.11388289]
[1723921462385,0.063048,59471.0,59470.0,0.063047]
[1723921463591,0.063048,59471.0,59470.0,0.068047]
[1723921463787,0.063048,59471.0,59470.0,0.077047]
[1723921465881,0.063048,59471.0,59470.0,0.12743985]
[1723921466391,0.063048,59471.0,59470.0,0.077047]
[1723921467289,0.063048,59471.0,59470.0,0.014]
[1723921468486,0.09551599,59471.0,59470.0,0.014]
[1723921468688,0.18047113,59471.0,59470.0,0.014]
[1723921468888,0.21293912,59471.0,59470.0,0.014]
[1723921469491,0.09551599,59471.0,59470.0,0.014]
[1723921470685,0.19644765,59471.0,59470.0,0.014]
[1723921470886,0.09551599,59471.0,59470.0,0.014]
[1723921471284,0.13667689,59471.0,59470.0,0.014]
[1723921471485,0.09551599,59471.0,59470.0,0.014]
[1723921472593,0.03246799,59471.0,59470.0,0.077048]
[1723921472787,0.03246799,59471.0,59470.0,0.670248]
[1723921473089,0.0324671,59471.0,59470.0,0.6072]
[1723921473595,0.03246525,59471.0,59470.0,1.11164]
[1723921473798,0.1175323,59471.0,59470.0,1.24786537]
[1723921474096,0.14999755,59471.0,59470.0,1.24786537]
[1723921474393,0.03246525,59471.0,59470.0,1.24786537]
[1723921475699,0.0002514,59478.0,59470.0,1.39697255]
[1723921475993,0.0002514,59478.0,59475.0,0.42800047]
[1723921476299,0.0002514,59478.0,59477.0,0.063041]
[1723921476598,0.0002514,59478.0,59477.0,0.11344264]
[1723921477496,0.0002514,59478.0,59477.0,0.11444264]
[1723921478698,0.0002514,59478.0,59477.0,0.070041]
[1723921478900,0.0002514,59478.0,59477.0,0.01]
[1723921478901,1.0884904,59478.0,59477.0,0.01]
[1723921479102,1.4884904,59478.0,59477.0,0.01]
[1723921479304,1.0884904,59478.0,59477.0,0.01]
[1723921479485,1.0884904,59478.0,59477.0,0.007]
[1723921479691,1.0884904,59478.0,59477.0,0.01]
[1723921480794,0.7276904,59478.0,59477.0,0.008]
[1723921481191,0.7276904,59478.0,59477.0,0.007]
[1723921481393,0.7276904,59478.0,59477.0,0.004]
[1723921481591,0.0632904,59478.0,59477.0,0.004]
[1723921483104,0.0632904,59478.0,59477.0,0.005]
[1723921483498,0.0002514,59478.0,59477.0,0.005]
[1723921483699,0.0002514,59478.0,59477.0,0.11744264]
[1723921483903,0.0002514,59478.0,59477.0,0.067041]
[1723921484593,0.0002514,59478.0,59477.0,0.1154355]
[1723921484800,0.0002514,59478.0,59477.0,0.066041]
[1723921485194,0.0002514,59478.0,59477.0,0.11643555]
[1723921486204,0.0002514,59478.0,59477.0,0.11943555]
[1723921486799,0.0002514,59478.0,59477.0,0.11643555]
[1723921487098,0.0002514,59478.0,59477.0,0.11943555]
[1723921487293,0.0002514,59478.0,59477.0,0.12343555]
[1723921487704,0.0002514,59478.0,59477.0,0.13358784]
[1723921487895,0.0002514,59478.0,59477.0,0.08319329]
[1723921488096,0.0002514,59478.0,59477.0,0.13358784]
[1723921488291,0.0002514,59478.0,59477.0,0.08319329]
[1723921488501,0.0002514,59478.0,59477.0,0.13357979]
[1723921488706,0.0002514,59478.0,59477.0,0.08319329]
[1723921489299,0.0002514,59478.0,59477.0,0.12342725]
[1723921489501,0.0002514,59478.0,59477.0,0.073041]
[1723921490096,0.0002514,59478.0,59477.0,0.12342725]
[1723921490498,0.0327163,59478.0,59477.0,0.073041]
[1723921490893,0.0327163,59478.0,59477.0,0.071041]
[1723921491799,0.0327163,59478.0,59477.0,0.070041]
[1723921494306,0.0002514,59478.0,59477.0,0.070041]
[1723921494501,0.03271538,59478.0,59477.0,0.070041]
[1723921495504,0.03271538,59478.0,59477.0,0.133082]
[1723921496009,0.16701012,59478.0,59477.0,0.133082]
[1723921496199,0.03271538,59478.0,59477.0,0.133082]
[1723921496513,0.03271538,59478.0,59477.0,0.135082]
[1723921496697,0.03271538,59478.0,59477.0,0.138082]
[1723921497795,0.03271538,59478.0,59477.0,0.498882]
[1723921498604,0.0002514,59478.0,59477.0,0.498882]
[1723921500908,0.35779928,59488.0,59487.0,0.06303]
[1723921501706,0.10069749,59495.0,59486.0,0.4538]
[1723921501910,0.10069749,59496.0,59495.0,0.063021]
[1723921502207,0.18493472,59500.0,59495.0,0.063021]
[1723921502208,0.50979749,59498.0,59495.0,0.063021]
[1723921502405,0.4091,59498.0,59490.0,0.2324]
[1723921502607,0.3608,59498.0,59490.0,0.2324]
[1723921502807,0.3608,59498.0,59491.0,0.0479]
[1723921503009,0.005,59496.0,59495.0,0.001]
[1723921503617,0.063023,59494.0,59491.0,0.063025]
[1723921504102,0.063024,59493.0,59491.0,0.063025]
[1723921504615,0.111121,59496.0,59493.0,0.063023]
[1723921505210,0.063021,59495.0,59493.0,0.063023]
[1723921505411,0.063022,59494.0,59493.0,0.063023]
[1723921505599,0.18820047,59494.0,59493.0,0.063023]
[1723921506004,0.18820047,59494.0,59493.0,0.064023]
[1723921506321,0.12517847,59494.0,59493.0,0.065023]
[1723921506500,0.13017847,59494.0,59493.0,0.065023]
[1723921508617,0.13017847,59494.0,59489.0,0.063027]
[1723921508618,0.80441847,59494.0,59489.0,0.063027]
[1723921508811,0.063026,59491.0,59489.0,0.063027]
[1723921509018,0.12517847,59490.0,59489.0,0.063027]
[1723921509812,0.18820547,59490.0,59489.0,0.063027]
[1723921510213,0.063029,59488.0,59480.0,0.4105]
[1723921510424,0.24847316,59487.0,59480.0,0.4105]
[1723921510712,0.18544316,59486.0,59480.0,0.4105]
[1723921510910,0.18544316,59485.0,59480.0,0.4105]
[1723921511110,0.18544316,59484.0,59480.0,0.4105]
[1723921511314,0.18544316,59483.0,59480.0,0.0497]
[1723921511619,0.18544316,59482.0,59481.0,0.063036]
[1723921511814,0.12517847,59482.0,59481.0,0.063036]
[1723921513103,0.12517847,59482.0,59481.0,0.066036]
[1723921513619,0.16361748,59482.0,59481.0,0.003]
[1723921513818,0.063035,59482.0,59481.0,0.003]
[1723921514920,0.063036,59481.0,59480.0,0.001]
[1723921515412,0.063039,59478.0,59477.0,0.06304]
[1723921515809,0.10058082,59479.0,59477.0,0.06304]
[1723921516005,0.10058082,59479.0,59478.0,0.063039]
[1723921516715,0.063036,59481.0,59478.0,0.063039]
[1723921516918,0.064036,59481.0,59478.0,0.063039]
[1723921517921,0.10058803,59479.0,59478.0,0.063039]
[1723921518321,0.10058803,59479.0,59478.0,0.066039]
[1723921518724,0.10058803,59479.0,59478.0,0.063039]
[1723921518914,0.10058803,59479.0,59478.0,0.066039]
[1723921519313,0.10058803,59479.0,59478.0,0.063039]
[1723921519619,0.10058803,59479.0,59478.0,0.066039]
[1723921520818,0.11734623,59479.0,59478.0,0.066039]
[1723921521407,0.14981066,59480.0,59478.0,0.066039]
[1723921521720,0.14981066,59479.0,59478.0,0.066039]
[1723921521920,0.11734623,59479.0,59478.0,0.066039]
[1723921523815,0.03246443,59479.0,59478.0,0.066039]
[1723921524825,0.14981066,59480.0,59478.0,0.066039]
[1723921525023,0.03246443,59479.0,59478.0,0.066039]
[1723921526019,0.03246443,59479.0,59478.0,0.159039]
[1723921528721,0.063037,59480.0,59478.0,0.159039]
[1723921530526,0.579876,59479.0,59478.0,0.003]
[1723921530728,0.063041,59477.0,59476.0,0.00025212]
[1723921532130,0.063041,59477.0,59476.0,0.09325212]
[1723921532333,0.063041,59477.0,59476.0,0.09825212]
[1723921533625,0.063041,59477.0,59476.0,0.10025212]
[1723921536430,0.063041,59477.0,59476.0,0.11041333]
[1723921537026,0.213041,59477.0,59476.0,0.00725212]
[1723921537242,0.369082,59477.0,59476.0,0.00725212]
[1723921537431,0.063049,59469.0,59468.0,0.05037559]
[1723921537734,0.063049,59469.0,59468.0,0.093]
[1723921538730,0.063049,59469.0,59468.0,0.104]
[1723921538933,0.064049,59469.0,59468.0,0.118]
[1723921539635,0.517849,59469.0,59468.0,0.025]
[1723921540037,0.565149,59469.0,59468.0,0.025]
[1723921542243,0.565149,59469.0,59462.0,0.063056]
[1723921542244,0.063054,59465.0,59462.0,0.063056]
[1723921542430,0.3608,59464.0,59462.0,0.063056]
[1723921543027,0.423854,59464.0,59462.0,0.063056]
[1723921543529,0.423854,59464.0,59463.0,0.02825212]
[1723921543729,0.424854,59464.0,59463.0,0.02825212]
[1723921544139,1.162428,59464.0,59463.0,0.02825212]
[1723921545641,0.657908,59464.0,59463.0,0.01425212]
[1723921545846,0.657908,59464.0,59463.0,0.01925212]
[1723921545847,0.658908,59464.0,59463.0,0.01925212]
[1723921548548,0.75954269,59464.0,59463.0,0.01925212]
[1723921549145,0.39874269,59464.0,59463.0,0.01925212]
[1723921549348,0.75954269,59464.0,59463.0,0.01925212]
[1723921549845,0.69648869,59464.0,59463.0,0.01925212]
[1723921550044,0.595854,59464.0,59463.0,0.01925212]
[1723921550445,0.425854,59464.0,59463.0,0.01925212]
[1723921558546,0.565854,59464.0,59463.0,0.01925212]
[1723921558944,0.205054,59464.0,59463.0,0.01925212]
[1723921559453,0.565854,59464.0,59463.0,0.01925212]
[1723921560353,0.205054,59464.0,59463.0,0.01925212]
[1723921560653,0.565854,59464.0,59463.0,0.01925212]
[1723921568552,0.565854,59464.0,59463.0,0.11225212]
[1723921568553,0.002,59464.0,59463.0,0.11225212]
[1723921568751,0.002,59464.0,59463.0,0.22568271]
[1723921568945,0.002,59464.0,59463.0,0.17530712]
[1723921573763,0.002,59464.0,59463.0,0.2256477]
[1723921573953,0.002,59464.0,59463.0,0.17530712]
[1723921574149,0.002,59464.0,59463.0,0.22564256]
[1723921574453,0.002,59464.0,59463.0,0.73016256]
[1723921577455,0.3608,59471.0,59470.0,0.063048]
[1723921578564,0.3608,59471.0,59470.0,0.070048]
[1723921578565,0.3618,59471.0,59470.0,0.070048]
[1723921578859,0.3618,59471.0,59470.0,0.071048]
[1723921579160,0.3628,59471.0,59470.0,0.071048]
[1723921579958,0.425847,59471.0,59470.0,0.071048]
[1723921585965,0.002,59471.0,59470.0,0.08105841]
[1723921586563,0.002,59471.0,59470.0,0.13139385]
[1723921586864,0.002,59471.0,59470.0,0.08105841]
[1723921587365,0.002,59471.0,59470.0,0.13133488]
[1723921587570,0.002,59471.0,59470.0,0.08105841]
[1723921587873,0.002,59471.0,59470.0,0.13133488]
[1723921588262,0.002,59471.0,59470.0,0.08105841]
[1723921594380,0.381094,59471.0,59470.0,0.008]
[1723921594771,0.32172869,59471.0,59470.0,0.008]
[1723921595171,0.221094,59471.0,59470.0,0.008]
[1723921595373,0.128094,59471.0,59470.0,0.008]
[1723921595568,0.23147908,59471.0,59470.0,0.008]
[1723921596475,0.95307908,59471.0,59470.0,0.008]
[1723921598880,0.23147908,59471.0,59470.0,0.008]
[1723921599080,0.95307908,59471.0,59470.0,0.008]
[1723921599979,0.86007908,59471.0,59470.0,0.008]
[1723921600179,1.05378305,59471.0,59470.0,0.008]
[1723921601884,0.33218305,59471.0,59470.0,0.008]
[1723921602186,1.05378305,59471.0,59470.0,0.008]
[1723921602584,0.33218305,59471.0,59470.0,0.008]
[1723921602983,1.05378305,59471.0,59470.0,0.008]
[1723921603376,0.33218305,59471.0,59470.0,0.008]
[1723921603581,1.05378305,59471.0,59470.0,0.008]
[1723921605278,0.95307908,59471.0,59470.0,0.008]
[1723921605984,1.05378305,59471.0,59470.0,0.008]
[1723921606873,0.33218305,59471.0,59470.0,0.008]
[1723921607081,1.05378305,59471.0,59470.0,0.008]
[1723921607278,0.23147908,59471.0,59470.0,0.008]
[1723921607475,0.95307908,59471.0,59470.0,0.008]
[1723921607681,0.23147908,59471.0,59470.0,0.008]
[1723921607889,0.95307908,59471.0,59470.0,0.008]
[1723921608389,0.23147908,59471.0,59470.0,0.008]
[1723921608589,0.95307908,59471.0,59470.0,0.008]
[1723921610289,0.063053,59465.0,59464.0,0.156054]
[1723921610485,0.423853,59465.0,59464.0,0.156054]
[1723921610884,0.423853,59465.0,59464.0,0.063054]
[1723921611393,0.424853,59465.0,59464.0,0.077054]
[1723921612187,0.424853,59465.0,59464.0,0.170054]
[1723921612778,0.064053,59465.0,59464.0,0.170054]
[1723921612983,0.425853,59465.0,59464.0,0.171054]
[1723921615097,0.065053,59465.0,59464.0,0.171054]
[1723921615290,0.425853,59465.0,59464.0,0.171054]
[1723921616593,0.065053,59465.0,59464.0,0.171054]
[1723921616790,0.425853,59465.0,59464.0,0.171054]
[1723921619902,0.065053,59465.0,59464.0,0.171054]
[1723921620088,0.425853,59465.0,59464.0,0.171054]
[1723921620396,0.3628,59465.0,59464.0,0.171054]
[1723921620597,0.00025212,59474.0,59473.0,0.063045]
[1723921620790,0.00025212,59474.0,59473.0,0.156045]
[1723921621187,0.00025212,59474.0,59470.0,0.0503106]
[1723921621188,0.063047,59471.0,59470.0,0.0503106]
[1723921621485,0.09325212,59474.0,59471.0,0.063047]
[1723921621486,0.3608,59472.0,59471.0,0.063047]
[1723921621793,0.3608,59472.0,59471.0,0.156047]
[1723921622997,0.3618,59472.0,59471.0,0.158047]
[1723921623798,0.3628,59472.0,59471.0,0.1741266]
[1723921624305,0.002,59472.0,59471.0,0.1741266]
[1723921624488,0.3628,59472.0,59471.0,0.1741266]
[1723921626501,0.002,59472.0,59471.0,0.1741266]
[1723921626706,0.3628,59472.0,59471.0,0.1741266]
[1723921630905,0.002,59472.0,59471.0,0.1741266]
[1723921631102,0.3628,59472.0,59471.0,0.1741266]
[1723921633901,0.46350397,59472.0,59471.0,0.1741266]
[1723921635999,0.10270397,59472.0,59471.0,0.1741266]
[1723921636212,0.46350397,59472.0,59471.0,0.1741266]
[1723921636605,0.10270397,59472.0,59471.0,0.1741266]
[1723921636805,0.46350397,59472.0,59471.0,0.1741266]
[1723921637506,0.002,59472.0,59471.0,0.1741266]
[1723921637714,0.002,59472.0,59471.0,0.2371736]
[1723921638008,0.002,59472.0,59471.0,1.17861639]
[1723921638220,0.002,59472.0,59471.0,1.22893922]
[1723921638415,0.002,59472.0,59471.0,0.71556864]
[1723921638805,0.002,59472.0,59471.0,0.6785666]
[1723921639103,0.002,59472.0,59471.0,0.1741266]
[1723921639308,0.002,59472.0,59471.0,0.6785666]
[1723921639701,0.002,59472.0,59471.0,0.1741266]
[1723921645523,0.002,59472.0,59471.0,0.22441938]
[1723921646612,0.002,59472.0,59471.0,0.22441056]
[1723921646813,0.002,59472.0,59471.0,0.1741266]
[1723921647211,0.002,59472.0,59471.0,0.7456474]
[1723921647512,0.002,59472.0,59471.0,0.2412074]
[1723921647715,0.002,59472.0,59471.0,0.8086944]
[1723921649016,0.002,59472.0,59471.0,0.7416136]
[1723921651024,0.002,59472.0,59471.0,1.1024136]
[1723921652825,0.002,59472.0,59471.0,0.7416136]
[1723921653028,0.002,59472.0,59471.0,1.1024136]
[1723921653633,0.002,59472.0,59471.0,0.5979736]
[1723921654613,0.002,59472.0,59471.0,0.2371736]
[1723921655121,0.002,59472.0,59471.0,0.5979736]
[1723921655919,0.002,59472.0,59471.0,0.2371736]
[1723921656114,0.002,59472.0,59471.0,0.5979736]
[1723921656725,0.3608,59483.0,59482.0,0.063035]
[1723921656929,0.3608,59483.0,59482.0,0.156035]
[1723921657229,0.3608,59483.0,59482.0,0.20633818]
[1723921658327,0.3638,59483.0,59482.0,0.20633818]
[1723921658722,0.3698,59483.0,59482.0,0.20733818]
[1723921658917,0.009,59483.0,59482.0,0.20733818]
[1723921660227,0.009,59483.0,59482.0,0.157035]
[1723921660627,0.009,59483.0,59482.0,0.16700367]
[1723921666233,0.009,59483.0,59482.0,0.23003867]
[1723921666725,0.3608,59487.0,59486.0,0.063031]
[1723921666919,0.11759835,59488.0,59487.0,0.06303]
[1723921669339,0.12659835,59488.0,59487.0,0.06403]
[1723921670231,0.00925212,59488.0,59487.0,0.06403]
[1723921670432,0.01425212,59488.0,59487.0,0.06503]
[1723921677432,1.00543012,59488.0,59487.0,0.002]
[1723921677626,0.50111012,59488.0,59487.0,0.002]
[1723921678029,0.14031012,59488.0,59487.0,0.002]
[1723921678239,0.54741012,59488.0,59487.0,0.002]
[1723921678439,0.48438112,59488.0,59487.0,0.002]
[1723921681545,0.07728112,59488.0,59487.0,0.095]
[1723921681736,0.07728112,59488.0,59487.0,0.15803]
[1723921682042,0.01425212,59488.0,59487.0,0.15803]
[1723921691249,0.16540425,59488.0,59487.0,0.15803]
[1723921692548,0.01425212,59488.0,59487.0,0.15803]
[1723921693755,0.16541525,59488.0,59487.0,0.15803]
[1723921694149,0.01425212,59488.0,59487.0,0.15803]
[1723921696054,0.01425212,59488.0,59487.0,0.20833318]
[1723921700150,0.01425212,59488.0,59487.0,0.22106]
[1723921700861,0.01425212,59488.0,59487.0,0.28812135]
[1723921701054,0.16541525,59488.0,59487.0,0.22106]
[1723921701260,0.01425212,59488.0,59487.0,0.22106]
[1723921701760,0.16541525,59488.0,59487.0,0.22106]
[1723921701956,0.01425212,59488.0,59487.0,0.22106]
[1723921704749,0.01425212,59488.0,59487.0,0.06503]
[1723921704952,0.01425212,59488.0,59487.0,0.15803]
[1723921704953,0.16541525,59488.0,59487.0,0.15803]
[1723921705154,0.01425212,59488.0,59487.0,0.15803]
[1723921706156,0.01425212,59488.0,59487.0,0.06503]
[1723921706356,0.01425212,59488.0,59487.0,0.15803]
[1723921706751,0.16537454,59488.0,59487.0,0.15803]
[1723921707359,0.01425212,59488.0,59487.0,0.06503]
[1723921707662,0.01425212,59488.0,59487.0,0.15803]
[1723921708362,0.01425212,59488.0,59487.0,0.06503]
[1723921708557,0.01425212,59488.0,59487.0,0.15803]
[1723921710163,0.07728112,59488.0,59487.0,0.15803]
[1723921711453,0.07728112,59488.0,59487.0,0.22509135]
[1723921712367,0.07728112,59488.0,59487.0,0.15803]
[1723921715057,0.07728112,59488.0,59487.0,0.22509135]
[1723921715261,0.07728112,59488.0,59487.0,0.15803]
[1723921719771,0.07728112,59488.0,59487.0,0.20837076]
[1723921719978,0.07728112,59488.0,59487.0,0.15803]
[1723921720377,0.07728112,59488.0,59487.0,0.20836892]
[1723921720566,0.07728112,59488.0,59487.0,0.002]
[1723921721372,0.07728112,59488.0,59487.0,0.05233877]
[1723921721881,0.74028112,59488.0,59481.0,0.06706135]
[1723921722179,0.3608,59482.0,59477.0,0.05060699]
[1723921722364,0.156039,59478.0,59477.0,0.05060699]
[1723921722686,0.063039,59478.0,59477.0,0.00025212]
[1723921723971,0.156039,59478.0,59477.0,0.00025212]
[1723921724164,0.063039,59478.0,59477.0,0.00025212]
[1723921724981,0.063039,59478.0,59477.0,0.09325212]
[1723921725278,0.109136,59481.0,59477.0,0.09325212]
[1723921725279,0.0461,59481.0,59477.0,0.09325212]
[1723921725479,0.423836,59482.0,59479.0,0.156038]
[1723921725671,0.063036,59481.0,59479.0,0.156038]
[1723921727282,0.425836,59481.0,59479.0,0.156038]
[1723921727875,0.425836,59481.0,59479.0,0.157038]
[1723921730383,0.425836,59481.0,59479.0,0.064038]
[1723921730585,0.063037,59480.0,59479.0,0.001]
[1723921732608,0.065037,59480.0,59479.0,0.001]
[1723921733199,0.065037,59480.0,59479.0,0.064038]
[1723921733900,0.065037,59480.0,59479.0,0.07428612]
[1723921736993,0.002,59480.0,59479.0,0.07428612]
[1723921750209,0.065037,59480.0,59479.0,0.07428612]
[1723921751106,0.065037,59480.0,59479.0,0.12464099]
[1723921751311,0.065037,59480.0,59479.0,0.07428612]
[1723921752312,0.065037,59480.0,59479.0,0.12465277]
[1723921756423,0.065037,59480.0,59479.0,0.07428612]
[1723921759521,0.065037,59480.0,59479.0,0.12465405]
[1723921760124,0.065037,59480.0,59479.0,0.07428612]
[1723921760519,0.065037,59480.0,59479.0,0.12465405]
[1723921761328,0.065037,59480.0,59479.0,0.07428612]
[1723921767928,0.158037,59480.0,59479.0,0.001]
[1723921768129,0.221074,59480.0,59479.0,0.001]
[1723921771630,0.581874,59480.0,59479.0,0.001]
[1723921772622,0.126078,59478.0,59477.0,0.00025212]
[1723921772831,0.296078,59478.0,59477.0,0.00025212]
[1723921773023,1.200478,59478.0,59477.0,0.00025212]
[1723921774819,1.200478,59478.0,59477.0,0.00325212]
[1723921775636,1.561278,59478.0,59477.0,0.00325212]
[1723921776420,1.200478,59478.0,59477.0,0.00325212]
[1723921776734,1.561278,59478.0,59477.0,0.00325212]
[1723921776933,1.57151067,59478.0,59477.0,0.00325212]
[1723921777137,1.21071067,59478.0,59477.0,0.00325212]
[1723921777323,1.57151067,59478.0,59477.0,0.00325212]
[1723921778428,0.81071067,59478.0,59477.0,0.00325212]
[1723921778628,1.17151067,59478.0,59477.0,0.00325212]
[1723921778927,1.26451067,59478.0,59477.0,0.00325212]
[1723921780525,0.76011067,59478.0,59477.0,0.00325212]
[1723921780935,1.26451067,59478.0,59477.0,0.00325212]
[1723921781142,0.76011067,59478.0,59477.0,0.00325212]
[1723921781332,1.26451067,59478.0,59477.0,0.00325212]
[1723921782137,0.516839,59478.0,59477.0,0.00325212]
[1723921782943,0.579878,59478.0,59477.0,0.00325212]
[1723921783532,0.516839,59478.0,59477.0,0.00325212]
[1723921785638,0.156039,59478.0,59477.0,0.00325212]
[1723921785832,0.516839,59478.0,59477.0,0.00325212]
[1723921786543,0.156039,59478.0,59477.0,0.00325212]
[1723921786745,0.516839,59478.0,59477.0,0.00325212]
[1723921787134,0.156039,59478.0,59477.0,0.00325212]
[1723921787444,0.516839,59478.0,59477.0,0.00325212]
[1723921788042,0.156039,59478.0,59477.0,0.00325212]
[1723921788243,0.516839,59478.0,59477.0,0.00325212]
[1723921789738,0.579878,59478.0,59477.0,0.00325212]
[1723921790537,0.219078,59478.0,59477.0,0.00325212]
[1723921790737,0.579878,59478.0,59477.0,0.00325212]
[1723921792649,0.516839,59478.0,59477.0,0.00325212]
[1723921792844,0.579878,59478.0,59477.0,0.00325212]
[1723921793751,0.516839,59478.0,59477.0,0.00325212]
[1723921793941,0.219078,59478.0,59477.0,0.00325212]
[1723921794339,0.579878,59478.0,59477.0,0.00325212]
[1723921794540,0.219078,59478.0,59477.0,0.00325212]
[1723921794739,0.579878,59478.0,59477.0,0.00325212]
[1723921795049,0.219078,59478.0,59477.0,0.00325212]
[1723921795245,0.579878,59478.0,59477.0,0.00325212]
[1723921796449,0.219078,59478.0,59477.0,0.00325212]
[1723921796747,0.579878,59478.0,59477.0,0.00325212]
[1723921798543,0.516839,59478.0,59477.0,0.00325212]
[1723921798749,0.579878,59478.0,59477.0,0.00325212]
[1723921799548,0.156039,59478.0,59477.0,0.00325212]
[1723921799745,0.516839,59478.0,59477.0,0.00325212]
[1723921799938,0.579878,59478.0,59477.0,0.00325212]
[1723921800348,0.516839,59478.0,59477.0,0.00325212]
[1723921800544,0.579878,59478.0,59477.0,0.00325212]
[1723921801250,0.516839,59478.0,59477.0,0.00325212]